bitfinex-derivatives/quotes_BTCF0:USTF0_20240829
["timestamp","ask_amount","ask_price","bid_price","bid_amount"]
[1724921969945,0.083853,59613.0,59607.0,0.084861]
[1724921970245,0.12,59610.0,59607.0,0.122]
[1724921970439,0.12,59610.0,59609.0,0.083858]
[1724921970738,0.12,59610.0,59607.0,0.002]
[1724921971636,0.12,59610.0,59607.0,0.001]
[1724921971944,0.122,59610.0,59609.0,0.001]
[1724921972544,0.123,59610.0,59607.0,0.002]
[1724921973049,0.123,59610.0,59609.0,0.001]
[1724921973445,0.003,59610.0,59609.0,0.001]
[1724921973646,0.123,59610.0,59609.0,0.001]
[1724921974343,0.206857,59610.0,59609.0,0.002]
[1724921974644,0.083873,59599.0,59594.0,0.3608]
[1724921974838,0.12,59602.0,59598.0,0.12]
[1724921975042,0.12,59602.0,59599.0,0.3608]
[1724921975349,0.083867,59603.0,59599.0,0.3608]
[1724921975748,0.12,59601.0,59599.0,0.3608]
[1724921976751,0.12,59601.0,59599.0,0.3618]
[1724921977950,0.123,59601.0,59599.0,0.3628]
[1724921978153,0.127,59601.0,59599.0,0.3628]
[1724921979150,0.15692788,59601.0,59599.0,0.3628]
[1724921979653,0.15692788,59601.0,59599.0,0.002]
[1724921984955,0.15692788,59601.0,59599.0,0.3628]
[1724921985157,0.15692788,59601.0,59599.0,0.4828]
[1724921985352,0.15692788,59601.0,59600.0,0.083871]
[1724921987250,0.15692788,59601.0,59600.0,0.084871]
[1724921988646,0.15592788,59601.0,59600.0,0.085871]
[1724921989053,0.03592788,59601.0,59600.0,0.147571]
[1724921990573,0.03592788,59601.0,59600.0,0.210171]
[1724921993155,0.083866,59604.0,59601.0,0.083868]
[1724921993350,0.12,59602.0,59601.0,0.083868]
[1724921994364,0.203868,59602.0,59601.0,0.0613]
[1724921994963,0.203868,59602.0,59601.0,0.0603]
[1724921995267,0.206868,59602.0,59601.0,0.0623]
[1724921997058,0.003,59602.0,59601.0,0.1823]
[1724921997563,0.003,59602.0,59601.0,0.32867]
[1724922001067,0.02972564,59608.0,59606.0,0.083862]
[1724922001268,0.12,59610.0,59606.0,0.083862]
[1724922001561,0.0861984,59609.0,59606.0,0.083862]
[1724922001761,0.0861984,59608.0,59606.0,0.083862]
[1724922002061,0.0861984,59607.0,59606.0,0.083862]
[1724922002856,0.0861984,59607.0,59605.0,0.3608]
[1724922002857,0.2061984,59607.0,59605.0,0.3608]
[1724922003059,0.2061984,59607.0,59602.0,0.1806]
[1724922003060,0.0861984,59606.0,59601.0,0.0642]
[1724922003363,0.203867,59603.0,59601.0,0.0603]
[1724922003560,0.0861984,59602.0,59601.0,0.0603]
[1724922004962,0.0861984,59602.0,59601.0,0.14517]
[1724922005165,0.0861984,59602.0,59601.0,0.14617]
[1724922005958,0.0039,59609.0,59601.0,0.1823]
[1724922006260,0.47835561,59612.0,59609.0,0.083858]
[1724922006468,0.47835561,59612.0,59608.0,0.12]
[1724922006469,0.08619716,59610.0,59608.0,0.12]
[1724922006664,0.08619716,59609.0,59608.0,0.20386]
[1724922007170,0.08619716,59609.0,59608.0,0.20273389]
[1724922008365,0.11485562,59612.0,59609.0,0.001]
[1724922008563,0.11365561,59612.0,59609.0,0.001]
[1724922008856,0.11365561,59612.0,59608.0,0.20273389]
[1724922009064,0.11365561,59612.0,59608.0,0.20373389]
[1724922009862,0.12,59610.0,59609.0,0.001]
[1724922010059,0.203857,59610.0,59609.0,0.001]
[1724922011267,0.203857,59610.0,59608.0,0.001]
[1724922011473,0.203857,59610.0,59609.0,0.001]
[1724922012073,0.203857,59610.0,59609.0,0.002]
[1724922012876,0.203857,59610.0,59609.0,0.001]
[1724922014473,0.203857,59610.0,59609.0,0.002]
[1724922016173,0.12,59610.0,59609.0,0.002]
[1724922019172,0.203857,59610.0,59609.0,0.002]
[1724922020674,0.707137,59610.0,59609.0,0.002]
[1724922021273,0.71972901,59610.0,59609.0,0.002]
[1724922023182,0.21644901,59610.0,59609.0,0.002]
[1724922027277,0.083864,59606.0,59603.0,0.0039]
[1724922027583,0.083864,59606.0,59602.0,0.147768]
[1724922027584,0.4808,59604.0,59602.0,0.147768]
[1724922028675,0.4808,59604.0,59603.0,0.001]
[1724922028883,0.4808,59604.0,59603.0,0.002]
[1724922029482,0.4808,59604.0,59603.0,0.001]
[1724922029790,0.4818,59604.0,59603.0,0.001]
[1724922030284,0.4818,59604.0,59603.0,0.002]
[1724922030878,0.3638,59604.0,59603.0,0.001]
[1724922031184,0.003,59604.0,59603.0,0.001]
[1724922031383,0.001,59604.0,59603.0,0.001]
[1724922031577,0.001,59604.0,59603.0,0.002]
[1724922031578,0.003,59604.0,59603.0,0.002]
[1724922033681,0.03308086,59604.0,59603.0,0.002]
[1724922033881,0.003,59604.0,59603.0,0.002]
[1724922034495,0.086866,59604.0,59603.0,0.002]
[1724922035185,0.086866,59604.0,59603.0,0.3628]
[1724922035783,0.086866,59604.0,59603.0,0.002]
[1724922037581,0.11732111,59604.0,59603.0,0.002]
[1724922041684,0.00120001,59619.0,59604.0,0.50332]
[1724922041886,0.083832,59629.0,59623.0,0.083838]
[1724922042089,0.3608,59635.0,59626.0,0.12]
[1724922042090,0.083832,59628.0,59626.0,0.12]
[1724922043589,0.083832,59628.0,59623.0,0.12]
[1724922043994,0.083832,59628.0,59622.0,0.08384]
[1724922044699,0.083832,59628.0,59623.0,0.001]
[1724922044902,0.11447335,59628.0,59623.0,0.1847]
[1724922045199,0.11447335,59628.0,59623.0,0.1837]
[1724922045396,0.11447335,59628.0,59623.0,0.267538]
[1724922045601,0.11447335,59628.0,59623.0,0.266538]
[1724922047496,0.11447335,59628.0,59623.0,0.268538]
[1724922048398,0.11447335,59628.0,59624.0,0.083837]
[1724922050300,0.03064135,59628.0,59626.0,0.3608]
[1724922050504,0.3608,59635.0,59626.0,0.444634]
[1724922051096,0.083828,59631.0,59627.0,0.083833]
[1724922051301,0.444623,59635.0,59627.0,0.083833]
[1724922051708,0.444623,59635.0,59628.0,0.083831]
[1724922052210,0.083824,59634.0,59628.0,0.083831]
[1724922052413,0.3608,59635.0,59628.0,0.083831]
[1724922052414,0.083825,59633.0,59628.0,0.083831]
[1724922052598,0.083829,59631.0,59627.0,0.083833]
[1724922053503,0.083829,59631.0,59627.0,0.085833]
[1724922053698,0.08619716,59630.0,59627.0,0.085833]
[1724922053901,0.08619716,59629.0,59628.0,0.083831]
[1724922054110,0.08619716,59634.0,59628.0,0.083831]
[1724922054598,0.39150751,59635.0,59626.0,0.3608]
[1724922054599,0.47770467,59635.0,59626.0,0.3608]
[1724922054804,0.56068667,59635.0,59628.0,0.08383]
[1724922055197,0.083824,59634.0,59629.0,0.08383]
[1724922055395,0.083825,59633.0,59629.0,0.08383]
[1724922057210,0.083825,59633.0,59629.0,0.08483]
[1724922057806,0.083825,59633.0,59629.0,0.08583]
[1724922058307,0.08619716,59632.0,59629.0,0.08583]
[1724922058511,0.08619716,59631.0,59629.0,0.08583]
[1724922058710,0.08619716,59630.0,59629.0,0.08583]
[1724922059605,0.08619716,59630.0,59629.0,0.08483]
[1724922059800,0.08619716,59630.0,59629.0,0.08583]
[1724922060002,0.08619716,59630.0,59629.0,0.08483]
[1724922060203,0.08619716,59630.0,59629.0,0.08583]
[1724922060403,0.083825,59633.0,59629.0,0.08483]
[1724922060810,0.083825,59633.0,59629.0,0.08583]
[1724922061106,0.083825,59633.0,59630.0,0.083829]
[1724922061304,0.083825,59633.0,59629.0,0.002]
[1724922061305,0.03074751,59635.0,59632.0,0.444625]
[1724922061509,0.02986751,59635.0,59632.0,0.3608]
[1724922061709,0.08382,59637.0,59632.0,0.3608]
[1724922061902,0.11457782,59637.0,59632.0,0.3608]
[1724922062103,0.03075782,59637.0,59632.0,0.3608]
[1724922062312,0.445454,59641.0,59632.0,0.3608]
[1724922062507,0.444614,59641.0,59632.0,0.3608]
[1724922062713,0.08382,59637.0,59632.0,0.3608]
[1724922063406,0.08382,59637.0,59633.0,0.0623]
[1724922064010,0.20382,59637.0,59633.0,0.0623]
[1724922064316,0.20382,59637.0,59632.0,0.3628]
[1724922064317,0.12,59634.0,59632.0,0.002]
[1724922064519,0.083825,59633.0,59632.0,0.002]
[1724922064812,0.082825,59633.0,59632.0,0.001]
[1724922065613,0.12,59634.0,59632.0,0.001]
[1724922065807,0.3608,59636.0,59632.0,0.001]
[1724922066408,0.3608,59636.0,59631.0,0.3608]
[1724922066616,0.12,59637.0,59633.0,0.084824]
[1724922067120,0.3608,59636.0,59633.0,0.001]
[1724922067307,0.083823,59635.0,59633.0,0.001]
[1724922067817,0.12,59634.0,59633.0,0.002]
[1724922068115,0.203823,59634.0,59633.0,0.002]
[1724922068909,0.203823,59634.0,59633.0,0.001]
[1724922069509,0.2652,59636.0,59633.0,0.601]
[1724922069709,0.0125874,59641.0,59633.0,0.601]
[1724922069710,0.01144981,59641.0,59640.0,0.083815]
[1724922069911,0.01144981,59641.0,59640.0,1.067615]
[1724922070111,0.00824139,59644.0,59641.0,0.083813]
[1724922070112,0.01144981,59642.0,59641.0,0.083813]
[1724922070512,0.01144981,59642.0,59640.0,0.48172]
[1724922070513,0.12,59648.0,59643.0,0.08381]
[1724922070816,0.12850319,59648.0,59644.0,0.12]
[1724922071021,0.00850319,59648.0,59644.0,0.12]
[1724922071221,0.11451888,59650.0,59644.0,0.12]
[1724922071808,0.12287768,59650.0,59644.0,0.12]
[1724922072009,0.12287768,59650.0,59644.0,0.001]
[1724922073315,0.12287768,59650.0,59644.0,0.002]
[1724922073620,0.20903967,59650.0,59644.0,0.085809]
[1724922073824,0.08616199,59649.0,59644.0,0.085809]
[1724922074007,0.12287768,59650.0,59644.0,0.085809]
[1724922074609,0.03907568,59650.0,59649.0,0.444602]
[1724922074817,0.0039,59655.0,59649.0,0.444602]
[1724922075015,0.083793,59656.0,59651.0,0.083799]
[1724922075318,0.083793,59656.0,59649.0,0.3608]
[1724922075319,0.02960842,59656.0,59655.0,0.3608]
[1724922075514,0.06778564,59660.0,59655.0,0.3608]
[1724922075823,0.06778564,59660.0,59655.0,0.444594]
[1724922076317,0.09749233,59660.0,59655.0,0.444594]
[1724922076524,0.3608,59656.0,59648.0,0.00415164]
[1724922076722,0.083802,59650.0,59648.0,0.00025164]
[1724922076911,0.083802,59650.0,59649.0,0.001]
[1724922077314,0.083802,59650.0,59648.0,0.00025164]
[1724922078024,0.083802,59650.0,59649.0,0.001]
[1724922079126,0.11361438,59650.0,59649.0,0.001]
[1724922079315,0.11361438,59650.0,59649.0,0.002]
[1724922079511,0.11361438,59650.0,59649.0,0.001]
[1724922080321,0.11361438,59650.0,59649.0,0.002]
[1724922081317,0.11361438,59650.0,59649.0,0.001]
[1724922081521,0.11361438,59650.0,59649.0,0.002]
[1724922081717,0.11361438,59650.0,59649.0,0.001]
[1724922082024,0.11361438,59650.0,59649.0,0.002]
[1724922082824,0.02981238,59650.0,59649.0,0.3628]
[1724922083030,0.0039,59657.0,59649.0,0.3628]
[1724922083320,0.083795,59655.0,59649.0,0.3628]
[1724922083625,0.3608,59653.0,59649.0,0.002]
[1724922083925,0.0838,59651.0,59649.0,0.002]
[1724922084514,0.0838,59651.0,59649.0,0.001]
[1724922084722,0.0838,59651.0,59649.0,0.002]
[1724922084930,0.0838,59651.0,59649.0,0.001]
[1724922085225,0.0838,59651.0,59649.0,0.002]
[1724922085416,0.0838,59651.0,59649.0,0.001]
[1724922085617,0.0838,59651.0,59649.0,0.002]
[1724922089221,0.1134402,59651.0,59649.0,0.002]
[1724922094125,0.12,59650.0,59649.0,0.002]
[1724922095231,0.08616199,59650.0,59649.0,0.002]
[1724922095433,0.20616199,59650.0,59649.0,0.002]
[1724922095621,0.20616199,59650.0,59649.0,0.001]
[1724922095827,0.20616199,59650.0,59649.0,0.002]
[1724922096521,0.06353602,59651.0,59649.0,0.002]
[1724922096718,0.12,59650.0,59649.0,0.002]
[1724922097628,0.12,59650.0,59649.0,0.001]
[1724922097824,0.12,59650.0,59649.0,0.002]
[1724922098329,0.445437,59653.0,59649.0,1.58572]
[1724922098330,0.084637,59653.0,59649.0,1.58572]
[1724922098523,0.01258313,59656.0,59655.0,0.083794]
[1724922098825,0.02944674,59658.0,59657.0,0.083791]
[1724922099038,0.01235815,59663.0,59662.0,0.083784]
[1724922099334,0.0039,59668.0,59664.0,0.083781]
[1724922099632,0.15927859,59670.0,59664.0,0.083781]
[1724922100132,0.03927859,59670.0,59664.0,0.083781]
[1724922100320,0.083773,59671.0,59664.0,0.083781]
[1724922100517,0.083773,59670.0,59664.0,0.083781]
[1724922100717,0.29,59669.0,59662.0,0.3608]
[1724922100929,0.083785,59661.0,59660.0,0.00025141]
[1724922101119,0.083793,59656.0,59653.0,0.0039]
[1724922101316,0.269687,59660.0,59651.0,0.3608]
[1724922101527,0.083792,59657.0,59656.0,0.3608]
[1724922103325,0.083795,59655.0,59651.0,0.36205141]
[1724922104031,0.083795,59655.0,59651.0,0.36105141]
[1724922104233,0.082795,59655.0,59651.0,0.36205141]
[1724922104725,0.03086733,59660.0,59656.0,0.083791]
[1724922105031,0.03086733,59660.0,59658.0,0.3608]
[1724922105032,0.083788,59660.0,59658.0,0.3608]
[1724922105233,0.01258115,59659.0,59658.0,0.3608]
[1724922105627,0.083788,59659.0,59658.0,0.3608]
[1724922106333,0.11394184,59662.0,59658.0,0.3608]
[1724922106528,0.001,59660.0,59658.0,0.3608]
[1724922107234,0.083784,59662.0,59658.0,0.3608]
[1724922107434,0.001,59659.0,59658.0,0.3618]
[1724922107735,0.001,59659.0,59658.0,0.3628]
[1724922108131,0.002,59660.0,59658.0,0.3628]
[1724922108829,0.002,59660.0,59658.0,0.446589]
[1724922109222,0.002,59660.0,59658.0,0.445589]
[1724922109426,0.002,59660.0,59658.0,0.446589]
[1724922110029,0.001,59659.0,59658.0,0.446589]
[1724922110227,0.0041507,59666.0,59665.0,0.08378]
[1724922110527,0.0002507,59666.0,59665.0,0.44458]
[1724922110725,0.0002507,59666.0,59665.0,0.94738]
[1724922111033,0.0039,59673.0,59665.0,0.94738]
[1724922111034,0.0039,59673.0,59669.0,0.083774]
[1724922111239,0.0039,59677.0,59676.0,0.083764]
[1724922111442,0.03078888,59680.0,59677.0,0.083762]
[1724922111736,0.03078888,59680.0,59674.0,0.3608]
[1724922111933,0.03904863,59680.0,59674.0,0.3608]
[1724922112129,0.03904863,59680.0,59679.0,0.3608]
[1724922112330,0.03904863,59680.0,59679.0,0.44456]
[1724922113737,0.03904863,59680.0,59679.0,0.44556]
[1724922114327,0.03904863,59680.0,59679.0,0.3628]
[1724922116641,0.03904863,59680.0,59679.0,0.44656]
[1724922117738,0.03078888,59680.0,59679.0,0.44656]
[1724922119237,0.03078888,59680.0,59679.0,0.3628]
[1724922121843,0.03078888,59680.0,59679.0,1.46548]
[1724922122045,0.0039,59686.0,59685.0,0.083752]
[1724922122247,0.0082605,59686.0,59681.0,0.083757]
[1724922122543,0.1243,59689.0,59681.0,0.083757]
[1724922122751,0.13288075,59689.0,59686.0,0.3608]
[1724922123843,0.13288075,59689.0,59686.0,0.44455]
[1724922124047,0.13288075,59689.0,59686.0,0.44555]
[1724922124444,0.13288075,59689.0,59686.0,0.3618]
[1724922124644,0.083749,59687.0,59686.0,0.3618]
[1724922125245,0.083749,59687.0,59686.0,0.3628]
[1724922125658,0.083749,59687.0,59686.0,0.3618]
[1724922125845,0.083749,59687.0,59686.0,0.3628]
[1724922126446,0.734549,59687.0,59671.0,0.36105141]
[1724922126744,0.083764,59676.0,59675.0,0.0039]
[1724922126948,0.083764,59676.0,59671.0,0.36105141]
[1724922127143,0.0621,59675.0,59671.0,0.36105141]
[1724922127355,0.083768,59674.0,59671.0,0.36105141]
[1724922127657,0.082768,59674.0,59671.0,0.36105141]
[1724922128156,0.082768,59674.0,59671.0,0.36605141]
[1724922128551,0.083769,59673.0,59671.0,0.36605141]
[1724922128749,0.083769,59673.0,59671.0,0.36105141]
[1724922130246,0.085769,59673.0,59671.0,0.36205141]
[1724922130450,0.085769,59673.0,59671.0,0.36305141]
[1724922130852,0.11124541,59673.0,59671.0,0.36305141]
[1724922131053,0.11324541,59673.0,59671.0,0.36305141]
[1724922132048,0.11224541,59673.0,59671.0,0.36305141]
[1724922132449,0.11224541,59673.0,59671.0,0.35207196]
[1724922133050,0.11224541,59673.0,59671.0,0.35107196]
[1724922133958,0.11224541,59673.0,59672.0,0.1839]
[1724922135160,0.11224541,59673.0,59672.0,0.0635]
[1724922135658,0.11224541,59673.0,59672.0,0.001]
[1724922135851,0.11224541,59673.0,59672.0,0.0643]
[1724922136051,0.11224541,59673.0,59672.0,0.4251]
[1724922136456,0.11224541,59673.0,59672.0,0.4261]
[1724922137862,0.11224541,59673.0,59672.0,0.3628]
[1724922138160,0.02847641,59673.0,59672.0,0.3628]
[1724922139156,0.02747641,59673.0,59672.0,0.3628]
[1724922139858,0.02747641,59673.0,59672.0,0.3618]
[1724922140761,0.02747641,59673.0,59672.0,0.3608]
[1724922143254,0.11124541,59673.0,59672.0,0.3608]
[1724922144059,0.11024541,59673.0,59672.0,0.3608]
[1724922144258,0.11124541,59673.0,59672.0,0.3608]
[1724922145258,0.11124541,59673.0,59672.0,0.3618]
[1724922145455,0.11124541,59673.0,59672.0,0.3628]
[1724922150463,0.11024541,59673.0,59672.0,0.3618]
[1724922150663,0.11124541,59673.0,59672.0,0.3628]
[1724922153166,0.02747641,59673.0,59672.0,0.3628]
[1724922153363,0.02747641,59673.0,59672.0,0.3618]
[1724922154668,0.02747641,59673.0,59672.0,0.3608]
[1724922155371,0.02647641,59673.0,59672.0,0.3608]
[1724922155569,0.02747641,59673.0,59672.0,0.3608]
[1724922156963,0.002,59673.0,59672.0,0.3608]
[1724922157867,0.001,59673.0,59672.0,0.3608]
[1724922158069,0.002,59673.0,59672.0,0.3608]
[1724922158771,0.08810038,59673.0,59672.0,0.3608]
[1724922162070,0.08710038,59673.0,59672.0,0.3608]
[1724922162265,0.08810038,59673.0,59672.0,0.3608]
[1724922162766,0.08810038,59673.0,59672.0,1.54733]
[1724922163190,0.002,59673.0,59672.0,1.54733]
[1724922163470,0.001,59673.0,59672.0,1.54733]
[1724922163874,0.0002514,59678.0,59677.0,0.083763]
[1724922164068,0.0002514,59678.0,59677.0,0.444563]
[1724922165070,0.0012514,59678.0,59677.0,0.444563]
[1724922165268,0.0012514,59678.0,59677.0,1.547283]
[1724922165864,0.0002514,59678.0,59677.0,1.549283]
[1724922166068,0.0002514,59678.0,59677.0,1.633046]
[1724922166265,0.0012514,59678.0,59677.0,1.633046]
[1724922167570,0.00858075,59689.0,59677.0,1.633046]
[1724922167571,0.083674,59741.0,59708.0,0.3608]
[1724922167875,0.083674,59741.0,59701.0,0.528258]
[1724922167876,0.0083769,59727.0,59725.0,0.705296]
[1724922168073,0.03055262,59726.0,59725.0,0.705296]
[1724922168276,1.21652662,59726.0,59725.0,0.2608]
[1724922168476,1.21652662,59726.0,59709.0,0.0631]
[1724922168477,1.70032762,59726.0,59720.0,0.00025118]
[1724922168782,1.70032762,59726.0,59711.0,0.3608]
[1724922168783,0.0837,59722.0,59717.0,0.36105118]
[1724922169085,0.0608,59721.0,59717.0,0.44475818]
[1724922169270,0.03981455,59726.0,59720.0,0.083702]
[1724922169573,0.1211,59720.0,59713.0,0.3608]
[1724922169767,0.1201,59720.0,59713.0,0.3608]
[1724922170171,0.1201,59720.0,59717.0,0.001]
[1724922170771,0.1201,59720.0,59713.0,0.36205118]
[1724922170973,0.1201,59720.0,59718.0,0.3608]
[1724922171382,0.1457878,59720.0,59718.0,0.3608]
[1724922172077,0.1457878,59720.0,59713.0,0.00125118]
[1724922172273,0.1457878,59720.0,59713.0,0.00225118]
[1724922172678,0.1457878,59720.0,59717.0,0.3608]
[1724922172985,0.1457878,59720.0,59717.0,0.3618]
[1724922173578,0.1457878,59720.0,59717.0,0.3608]
[1724922173975,0.1457878,59720.0,59713.0,0.00225118]
[1724922174177,0.1457878,59720.0,59713.0,0.00125118]
[1724922174372,0.1457878,59720.0,59717.0,0.001]
[1724922174776,0.1457878,59720.0,59718.0,0.001]
[1724922175279,0.6481478,59720.0,59718.0,0.001]
[1724922175476,0.1457878,59720.0,59717.0,0.001]
[1724922175679,0.1457878,59720.0,59717.0,0.002]
[1724922175879,0.1457878,59720.0,59719.0,0.444504]
[1724922176087,0.1457878,59720.0,59719.0,0.3608]
[1724922177272,0.2294908,59720.0,59718.0,0.001]
[1724922177473,0.2294908,59720.0,59719.0,0.001]
[1724922177679,0.1457878,59720.0,59719.0,0.001]
[1724922178086,0.1457878,59720.0,59719.0,0.002]
[1724922179488,0.0864878,59720.0,59719.0,0.002]
[1724922179686,0.0839878,59720.0,59719.0,0.002]
[1724922179987,0.0583,59720.0,59719.0,0.085704]
[1724922180290,0.00025039,59724.0,59723.0,0.083698]
[1724922180883,0.02618372,59724.0,59723.0,0.083698]
[1724922181583,0.02618372,59724.0,59723.0,0.084698]
[1724922181788,0.02618372,59724.0,59723.0,0.085698]
[1724922182985,0.00025039,59724.0,59723.0,0.085698]
[1724922184391,0.00451052,59726.0,59725.0,0.083696]
[1724922184694,0.00451052,59726.0,59725.0,1.044496]
[1724922184996,0.00451052,59726.0,59725.0,1.546776]
[1724922185378,0.00451052,59726.0,59725.0,1.630472]
[1724922185577,0.00451052,59726.0,59725.0,1.631472]
[1724922185983,0.00451052,59726.0,59725.0,0.445496]
[1724922186182,0.17189852,59726.0,59725.0,0.001]
[1724922186382,0.08820452,59726.0,59725.0,0.001]
[1724922186888,0.08820452,59726.0,59725.0,0.085696]
[1724922186889,0.00451052,59726.0,59725.0,0.085696]
[1724922191093,0.00451052,59726.0,59725.0,1.187976]
[1724922191891,0.00451052,59726.0,59725.0,0.085696]
[1724922193095,0.00451052,59726.0,59725.0,1.187976]
[1724922193286,0.00451052,59726.0,59725.0,0.085696]
[1724922193694,0.08820452,59726.0,59725.0,0.002]
[1724922195203,0.00451052,59726.0,59725.0,0.002]
[1724922197300,0.02557186,59726.0,59725.0,0.002]
[1724922201512,0.00451052,59726.0,59725.0,0.002]
[1724922202014,0.00451052,59726.0,59725.0,0.085696]
[1724922202213,0.00451052,59726.0,59725.0,0.144796]
[1724922202414,0.00451052,59726.0,59725.0,0.085696]
[1724922203221,0.00451052,59726.0,59725.0,0.091696]
[1724922204320,0.083685,59733.0,59729.0,0.08369]
[1724922204515,0.083685,59733.0,59731.0,0.3608]
[1724922204714,0.083685,59733.0,59729.0,0.08369]
[1724922204910,0.167373,59732.0,59726.0,0.083694]
[1724922205116,0.083686,59732.0,59726.0,0.083694]
[1724922205317,0.08369,59729.0,59725.0,0.00825118]
[1724922205516,0.083682,59735.0,59725.0,0.00825118]
[1724922205920,0.08369,59730.0,59725.0,0.00825118]
[1724922206320,0.083682,59735.0,59725.0,0.00825118]
[1724922206321,0.08369,59729.0,59725.0,0.00825118]
[1724922206619,0.1223,59728.0,59719.0,0.3608]
[1724922206810,0.083702,59721.0,59719.0,0.3608]
[1724922207616,0.50236,59720.0,59719.0,0.3608]
[1724922208215,1.10236,59720.0,59719.0,0.3618]
[1724922208419,1.10236,59720.0,59719.0,0.2666]
[1724922208822,1.10236,59720.0,59719.0,0.2676]
[1724922209117,1.10236,59720.0,59719.0,0.002]
[1724922209118,1.546863,59720.0,59719.0,0.002]
[1724922209423,1.991366,59720.0,59719.0,0.002]
[1724922209611,1.995366,59720.0,59719.0,0.002]
[1724922209810,1.998366,59720.0,59719.0,0.002]
[1724922210016,0.08371,59715.0,59714.0,0.00025118]
[1724922210213,0.08371,59715.0,59703.0,0.3608]
[1724922210214,0.083717,59710.0,59703.0,0.3608]
[1724922210412,0.082717,59710.0,59703.0,0.3608]
[1724922210627,0.083718,59709.0,59703.0,0.3608]
[1724922211019,0.081718,59709.0,59703.0,0.3608]
[1724922212220,0.0586,59711.0,59703.0,0.3608]
[1724922212417,0.0586,59711.0,59704.0,0.083724]
[1724922212820,0.0586,59711.0,59705.0,0.083723]
[1724922213029,0.002,59710.0,59705.0,0.083723]
[1724922213220,0.002,59709.0,59705.0,0.083723]
[1724922214026,0.0616,59711.0,59703.0,0.3608]
[1724922214226,0.145316,59711.0,59703.0,0.3608]
[1724922214431,0.0606,59711.0,59703.0,0.3608]
[1724922214621,0.002,59709.0,59703.0,0.3608]
[1724922214823,0.004,59709.0,59703.0,0.3608]
[1724922216222,0.083717,59710.0,59703.0,0.3608]
[1724922216928,0.002,59709.0,59703.0,0.3608]
[1724922217125,0.004,59709.0,59703.0,0.3608]
[1724922217528,0.002,59709.0,59703.0,0.3608]
[1724922217721,0.002,59709.0,59703.0,0.444526]
[1724922217921,0.004,59710.0,59703.0,0.3608]
[1724922218124,0.087717,59710.0,59703.0,0.3608]
[1724922218320,0.001,59709.0,59703.0,0.3608]
[1724922219536,0.002,59709.0,59703.0,0.3608]
[1724922219833,0.001,59709.0,59703.0,0.3608]
[1724922220018,0.083721,59707.0,59703.0,0.3608]
[1724922222526,0.089721,59707.0,59703.0,0.3618]
[1724922223032,0.095721,59707.0,59703.0,0.3628]
[1724922223531,0.089721,59707.0,59703.0,0.3618]
[1724922223829,0.094721,59707.0,59703.0,0.3618]
[1724922225327,0.05648375,59707.0,59703.0,0.3618]
[1724922226135,0.05748375,59707.0,59703.0,0.3628]
[1724922227416,0.14120475,59707.0,59703.0,0.3628]
[1724922233034,0.05748375,59707.0,59703.0,0.3628]
[1724922240146,0.05748375,59707.0,59704.0,0.3608]
[1724922241938,0.083724,59705.0,59704.0,0.3608]
[1724922243143,0.083724,59705.0,59704.0,0.3628]
[1724922243641,0.083724,59705.0,59704.0,0.3618]
[1724922243938,0.095724,59705.0,59704.0,0.3628]
[1724922244143,0.167458,59701.0,59700.0,0.00025118]
[1724922244342,0.7336,59705.0,59691.0,0.1194]
[1724922244549,0.3608,59700.0,59691.0,0.1194]
[1724922244941,0.083729,59701.0,59694.0,0.3608]
[1724922245240,0.15604,59705.0,59699.0,0.3608]
[1724922245449,0.083727,59703.0,59699.0,0.3608]
[1724922245842,0.15604,59705.0,59699.0,0.3608]
[1724922245843,0.003,59701.0,59699.0,0.3608]
[1724922246644,0.083729,59702.0,59699.0,0.3608]
[1724922246853,0.083731,59700.0,59699.0,0.3608]
[1724922248145,0.588251,59700.0,59699.0,0.3608]
[1724922248444,0.588251,59700.0,59692.0,0.00025118]
[1724922248445,1.35972,59700.0,59692.0,0.00025118]
[1724922248649,0.3608,59695.0,59692.0,0.00025118]
[1724922249752,0.3608,59695.0,59692.0,0.00525118]
[1724922249941,0.08374,59693.0,59692.0,0.01125118]
[1724922250142,0.00025118,59699.0,59692.0,0.01125118]
[1724922250342,0.00025118,59699.0,59696.0,0.3608]
[1724922252855,0.00025118,59699.0,59696.0,0.3628]
[1724922253042,0.00025118,59699.0,59696.0,0.3638]
[1724922253442,0.00025118,59699.0,59697.0,0.0623]
[1724922254950,0.083733,59698.0,59697.0,0.0623]
[1724922255750,0.00025118,59699.0,59697.0,0.0623]
[1724922256152,0.083733,59698.0,59697.0,0.0623]
[1724922260056,0.083733,59698.0,59694.0,0.3608]
[1724922261652,0.083733,59698.0,59694.0,0.3638]
[1724922262456,0.083733,59698.0,59694.0,0.3678]
[1724922262858,0.0582,59697.0,59694.0,0.3678]
[1724922264564,0.0582,59697.0,59694.0,0.007]
[1724922265154,0.0582,59697.0,59694.0,0.3678]
[1724922265350,0.141935,59697.0,59694.0,0.3678]
[1724922265560,0.083738,59695.0,59694.0,0.007]
[1724922266659,0.141935,59697.0,59692.0,0.00025118]
[1724922266862,0.108735,59697.0,59694.0,0.007]
[1724922267668,0.31573459,59698.0,59694.0,0.007]
[1724922267867,0.083738,59695.0,59694.0,0.007]
[1724922268354,0.083738,59695.0,59694.0,0.004]
[1724922268962,0.083738,59695.0,59692.0,0.01125118]
[1724922269270,0.001,59697.0,59694.0,0.003]
[1724922269461,0.084736,59697.0,59694.0,0.003]
[1724922269667,0.084736,59697.0,59694.0,0.007]
[1724922269668,0.083736,59697.0,59694.0,0.007]